[Event "December 19 Late 2023"]
[Site "https://www.chess.com"]
[Date "2023.12.19"]
[Round "2"]
[White "Nasybullina, Alfia"]
[Black "Chylewski, Patryk"]
[Result "0-1"]
[Board "136"]
[TimeControl "180+1"]
[WhiteFideId "4132416"]
[BlackFideId "1186191"]
[WhiteElo "1920"]
[BlackElo "2176"]
[WhiteTeam "KAZ"]
[BlackTeam "POL"]
[WhiteClock "0:00:52"]
[BlackClock "0:00:06"]

1. d4 {[%clk 0:03:00]}  Nf6 {[%clk 0:02:59]} 2. Nf3 {[%clk 0:03:01]}  e6 {[%clk 0:02:59]} 3. Bf4 {[%clk 0:02:59]}  d5 {[%clk 0:02:59]} 4. e3 {[%clk 0:02:59]}  c5 {[%clk 0:02:59]} 5. c3 {[%clk 0:02:58]}  Nc6 {[%clk 0:02:58]} 6. Nbd2 {[%clk 0:02:58]}  cxd4 {[%clk 0:02:58]} 7. exd4 {[%clk 0:02:58]}  Nh5 {[%clk 0:02:58]} 8. Be3 {[%clk 0:02:57]}  Bd6 {[%clk 0:02:57]} 9. Ne5 {[%clk 0:02:55]}  g6 {[%clk 0:02:57]} 10. Nxc6 {[%clk 0:02:49]}  bxc6 {[%clk 0:02:56]} 11. Be2 {[%clk 0:02:49]}  Nf4 {[%clk 0:02:53]} 12. Bf3 {[%clk 0:02:48]}  O-O {[%clk 0:02:38]} 13. O-O {[%clk 0:02:46]}  Rb8 {[%clk 0:02:36]} 14. b3 {[%clk 0:02:46]}  a5 {[%clk 0:02:24]} 15. Re1 {[%clk 0:02:39]}  Qc7 {[%clk 0:01:44]} 16. Nf1 {[%clk 0:02:39]}  e5 {[%clk 0:01:40]} 17. Bxf4 {[%clk 0:02:36]}  exf4 {[%clk 0:01:40]} 18. Nd2 {[%clk 0:02:27]}  Bf5 {[%clk 0:01:40]} 19. c4 {[%clk 0:02:27]}  Bb4 {[%clk 0:01:32]} 20. Re5 {[%clk 0:02:25]}  dxc4 {[%clk 0:01:24]} 21. Nxc4 {[%clk 0:02:22]}  Rfd8 {[%clk 0:01:22]} 22. Rxf5 {[%clk 0:02:11]}  gxf5 {[%clk 0:01:23]} 23. Qd3 {[%clk 0:02:11]}  Bc5 {[%clk 0:00:33]} 24. Qxf5 {[%clk 0:02:05]}  Bxd4 {[%clk 0:00:33]} 25. Rf1 {[%clk 0:02:01]}  Rb5 {[%clk 0:00:25]} 26. Qg4+ {[%clk 0:01:56]}  Bg7 {[%clk 0:00:22]} 27. Be4 {[%clk 0:01:48]}  Qe7 {[%clk 0:00:16]} 28. f3 {[%clk 0:01:45]}  Qf6 {[%clk 0:00:15]} 29. Qh3 {[%clk 0:01:35]}  Rg5 {[%clk 0:00:13]} 30. Qxh7+ {[%clk 0:01:34]}  Kf8 {[%clk 0:00:13]} 31. Bb1 {[%clk 0:01:21]}  Qh6 {[%clk 0:00:12]} 32. Qe4 {[%clk 0:01:18]}  Qg6 {[%clk 0:00:08]} 33. Qe2 {[%clk 0:01:13]}  Bd4+ {[%clk 0:00:07]} 34. Kh1 {[%clk 0:01:12]}  Qh6 {[%clk 0:00:06]} 35. Qe4 {[%clk 0:01:06]}  Rh5 {[%clk 0:00:05]} 36. h3 {[%clk 0:00:52]}  Rxh3+ {[%clk 0:00:05]} 37. gxh3 {[%clk 0:00:52]}  Qxh3# {[%clk 0:00:06]} 0-1

[Event "December 19 Late 2023"]
[Site "https://www.chess.com"]
[Date "2023.12.19"]
[Round "2"]
[White "Bru Rullo, Llatzer"]
[Black "Romero Ruscalleda, Josep"]
[Result "1-0"]
[Board "137"]
[TimeControl "180+1"]
[WhiteFideId "22219668"]
[BlackFideId "2231859"]
[WhiteElo "2190"]
[BlackElo "2200"]
[WhiteTeam "ESP"]
[BlackTeam "ESP"]
[WhiteClock "0:00:24"]
[BlackClock "0:00:23"]

1. d4 {[%clk 0:03:00]}  g6 {[%clk 0:03:00]} 2. c4 {[%clk 0:03:01]}  Bg7 {[%clk 0:03:00]} 3. Nc3 {[%clk 0:02:59]}  d6 {[%clk 0:03:01]} 4. e4 {[%clk 0:02:57]}  Nc6 {[%clk 0:03:01]} 5. Be3 {[%clk 0:02:53]}  e5 {[%clk 0:03:01]} 6. Nge2 {[%clk 0:02:53]}  exd4 {[%clk 0:03:01]} 7. Nxd4 {[%clk 0:02:53]}  Nge7 {[%clk 0:03:02]} 8. Be2 {[%clk 0:02:52]}  O-O {[%clk 0:03:01]} 9. O-O {[%clk 0:02:48]}  f5 {[%clk 0:03:02]} 10. Nxc6 {[%clk 0:02:38]}  Nxc6 {[%clk 0:02:58]} 11. exf5 {[%clk 0:02:38]}  Bxf5 {[%clk 0:02:57]} 12. Qd2 {[%clk 0:02:39]}  Qd7 {[%clk 0:02:54]} 13. Rad1 {[%clk 0:02:37]}  Qf7 {[%clk 0:02:39]} 14. Bf3 {[%clk 0:02:31]}  Kh8 {[%clk 0:02:36]} 15. Bd5 {[%clk 0:02:27]}  Be6 {[%clk 0:02:30]} 16. Nb5 {[%clk 0:02:07]}  Bxd5 {[%clk 0:02:22]} 17. cxd5 {[%clk 0:02:05]}  Ne5 {[%clk 0:02:20]} 18. Rc1 {[%clk 0:02:02]}  Ng4 {[%clk 0:01:55]} 19. Rxc7 {[%clk 0:01:51]}  Qf6 {[%clk 0:01:54]} 20. Bd4 {[%clk 0:01:46]}  Ne5 {[%clk 0:01:38]} 21. f4 {[%clk 0:01:32]}  g5 {[%clk 0:01:38]} 22. Nxd6 {[%clk 0:00:44]}  Nf3+ {[%clk 0:01:11]} 23. Rxf3 {[%clk 0:00:44]}  Qxd4+ {[%clk 0:01:11]} 24. Qxd4 {[%clk 0:00:44]}  Bxd4+ {[%clk 0:01:11]} 25. Kf1 {[%clk 0:00:45]}  Rxf4 {[%clk 0:01:08]} 26. Nf7+ {[%clk 0:00:39]}  Kg8 {[%clk 0:01:07]} 27. Nxg5 {[%clk 0:00:38]}  Rxf3+ {[%clk 0:01:07]} 28. Nxf3 {[%clk 0:00:39]}  Bxb2 {[%clk 0:01:07]} 29. Rxb7 {[%clk 0:00:39]}  Bf6 {[%clk 0:01:07]} 30. Ke2 {[%clk 0:00:37]}  Rc8 {[%clk 0:01:05]} 31. Kd3 {[%clk 0:00:37]}  Rc3+ {[%clk 0:01:05]} 32. Ke4 {[%clk 0:00:37]}  Rc2 {[%clk 0:01:03]} 33. Kf5 {[%clk 0:00:38]}  Bg7 {[%clk 0:01:03]} 34. d6 {[%clk 0:00:37]}  Bf8 {[%clk 0:00:53]} 35. d7 {[%clk 0:00:34]}  Be7 {[%clk 0:00:54]} 36. Rb8+ {[%clk 0:00:34]}  Kf7 {[%clk 0:00:54]} 37. Ne5+ {[%clk 0:00:33]}  Kg7 {[%clk 0:00:54]} 38. Re8 {[%clk 0:00:32]}  Rf2+ {[%clk 0:00:51]} 39. Ke6 {[%clk 0:00:31]}  Bf6 {[%clk 0:00:42]} 40. Ng4 {[%clk 0:00:27]}  Re2+ {[%clk 0:00:39]} 41. Kf5 {[%clk 0:00:27]}  Rd2 {[%clk 0:00:35]} 42. Nxf6 {[%clk 0:00:26]}  Rf2+ {[%clk 0:00:35]} 43. Ke5 {[%clk 0:00:25]}  Re2+ {[%clk 0:00:35]} 44. Kf4 {[%clk 0:00:24]}  Rf2+ {[%clk 0:00:35]} 45. Kg3 {[%clk 0:00:24]}  Rxf6 {[%clk 0:00:23]} 46. d8=Q {[%clk 0:00:24]} 1-0

[Event "December 19 Late 2023"]
[Site "https://www.chess.com"]
[Date "2023.12.19"]
[Round "2"]
[White "Kepeshchuk, Mykhaylo"]
[Black "Copeland, Samuel"]
[Result "0-1"]
[Board "139"]
[TimeControl "180+1"]
[WhiteFideId "14113139"]
[BlackFideId "2007347"]
[WhiteElo "2279"]
[BlackElo "2282"]
[WhiteTeam "UKR"]
[BlackTeam "USA"]
[WhiteClock "0:00:00"]
[BlackClock "0:00:41"]

1. d4 {[%clk 0:02:58]}  d5 {[%clk 0:02:54]} 2. c4 {[%clk 0:02:59]}  c6 {[%clk 0:02:53]} 3. Nf3 {[%clk 0:02:58]}  Nf6 {[%clk 0:02:52]} 4. g3 {[%clk 0:02:59]}  g6 {[%clk 0:02:39]} 5. Bg2 {[%clk 0:02:57]}  Bg7 {[%clk 0:02:39]} 6. O-O {[%clk 0:02:57]}  O-O {[%clk 0:02:38]} 7. cxd5 {[%clk 0:02:57]}  cxd5 {[%clk 0:02:38]} 8. Nc3 {[%clk 0:02:58]}  Nc6 {[%clk 0:02:37]} 9. Ne5 {[%clk 0:02:59]}  Bf5 {[%clk 0:02:29]} 10. b3 {[%clk 0:02:54]}  Rc8 {[%clk 0:02:28]} 11. Nxc6 {[%clk 0:02:49]}  Rxc6 {[%clk 0:02:25]} 12. Bb2 {[%clk 0:02:49]}  a6 {[%clk 0:02:19]} 13. Qd2 {[%clk 0:02:48]}  b5 {[%clk 0:02:17]} 14. Rfc1 {[%clk 0:02:47]}  Qd7 {[%clk 0:02:11]} 15. Ba3 {[%clk 0:02:32]}  Rfc8 {[%clk 0:02:07]} 16. e3 {[%clk 0:02:31]}  h5 {[%clk 0:01:59]} 17. Bc5 {[%clk 0:02:19]}  Bh3 {[%clk 0:01:48]} 18. a4 {[%clk 0:02:16]}  Bxg2 {[%clk 0:01:43]} 19. Kxg2 {[%clk 0:02:16]}  h4 {[%clk 0:01:43]} 20. axb5 {[%clk 0:02:12]}  h3+ {[%clk 0:01:43]} 21. Kg1 {[%clk 0:01:50]}  axb5 {[%clk 0:01:42]} 22. Ra7 {[%clk 0:01:38]}  Qf5 {[%clk 0:01:29]} 23. Qe2 {[%clk 0:01:26]}  b4 {[%clk 0:01:18]} 24. Nd1 {[%clk 0:01:13]}  Ne4 {[%clk 0:01:11]} 25. f3 {[%clk 0:01:05]}  Nxc5 {[%clk 0:01:08]} 26. dxc5 {[%clk 0:00:56]}  Rxc5 {[%clk 0:01:06]} 27. Rxc5 {[%clk 0:00:57]}  Rxc5 {[%clk 0:01:06]} 28. Rxe7 {[%clk 0:00:49]}  Rc2 {[%clk 0:01:04]} 29. Qf1 {[%clk 0:00:20]}  Rg2+ {[%clk 0:01:01]} 30. Kh1 {[%clk 0:00:20]}  Qc2 {[%clk 0:00:56]} 31. Re8+ {[%clk 0:00:16]}  Kh7 {[%clk 0:00:55]} 32. Re7 {[%clk 0:00:11]}  Rxh2+ {[%clk 0:00:52]} 33. Kg1 {[%clk 0:00:11]}  Rg2+ {[%clk 0:00:51]} 34. Kh1 {[%clk 0:00:11]}  Kg8 {[%clk 0:00:46]} 35. Re8+ {[%clk 0:00:11]}  Bf8 {[%clk 0:00:46]} 36. Rd8 {[%clk 0:00:00]}  Rd2 {[%clk 0:00:41]} 0-1

[Event "December 19 Late 2023"]
[Site "https://www.chess.com"]
[Date "2023.12.19"]
[Round "2"]
[White "Mohammad, Fahim"]
[Black "Pham, Le Thao Nguyen"]
[Result "1/2-1/2"]
[Board "140"]
[TimeControl "180+1"]
[WhiteFideId "10206248"]
[BlackFideId "12401226"]
[WhiteElo "2177"]
[BlackElo "2261"]
[WhiteTeam "FRA"]
[BlackTeam "VIE"]
[WhiteClock "0:00:17"]
[BlackClock "0:00:23"]

1. d4 {[%clk 0:03:00]}  Nf6 {[%clk 0:02:58]} 2. Nf3 {[%clk 0:02:57]}  d5 {[%clk 0:02:56]} 3. c4 {[%clk 0:02:57]}  c6 {[%clk 0:02:56]} 4. Nc3 {[%clk 0:02:56]}  a6 {[%clk 0:02:56]} 5. e3 {[%clk 0:02:56]}  b5 {[%clk 0:02:56]} 6. b3 {[%clk 0:02:56]}  Bg4 {[%clk 0:02:55]} 7. a4 {[%clk 0:02:56]}  bxc4 {[%clk 0:02:52]} 8. bxc4 {[%clk 0:02:57]}  e6 {[%clk 0:02:50]} 9. Bd3 {[%clk 0:02:55]}  a5 {[%clk 0:02:47]} 10. h3 {[%clk 0:02:54]}  Bxf3 {[%clk 0:02:40]} 11. Qxf3 {[%clk 0:02:55]}  Bb4 {[%clk 0:02:36]} 12. Bd2 {[%clk 0:02:55]}  Nbd7 {[%clk 0:02:36]} 13. O-O {[%clk 0:02:44]}  O-O {[%clk 0:02:35]} 14. Rfd1 {[%clk 0:02:35]}  Re8 {[%clk 0:02:11]} 15. cxd5 {[%clk 0:01:43]}  cxd5 {[%clk 0:01:39]} 16. Ne2 {[%clk 0:01:26]}  Bxd2 {[%clk 0:01:15]} 17. Rxd2 {[%clk 0:01:24]}  Qe7 {[%clk 0:01:16]} 18. Bb5 {[%clk 0:01:21]}  Rec8 {[%clk 0:01:16]} 19. Nf4 {[%clk 0:01:16]}  Nb6 {[%clk 0:01:06]} 20. Nd3 {[%clk 0:01:06]}  Ne4 {[%clk 0:01:06]} 21. Rb2 {[%clk 0:00:56]}  f6 {[%clk 0:01:05]} 22. Qg4 {[%clk 0:00:46]}  Rc7 {[%clk 0:01:00]} 23. Nf4 {[%clk 0:00:41]}  f5 {[%clk 0:00:45]} 24. Qh5 {[%clk 0:00:32]}  Nc4 {[%clk 0:00:43]} 25. Rc2 {[%clk 0:00:25]}  Rac8 {[%clk 0:00:41]} 26. Rac1 {[%clk 0:00:25]}  g6 {[%clk 0:00:32]} 27. Nxg6 {[%clk 0:00:20]}  hxg6 {[%clk 0:00:29]} 28. Qxg6+ {[%clk 0:00:20]}  Kf8 {[%clk 0:00:27]} 29. Qh6+ {[%clk 0:00:20]}  Kf7 {[%clk 0:00:25]} 30. Qh7+ {[%clk 0:00:19]}  Kf8 {[%clk 0:00:24]} 31. Qh8+ {[%clk 0:00:16]}  Kf7 {[%clk 0:00:23]} 32. Qh7+ {[%clk 0:00:17]}  Kf8 {[%clk 0:00:22]} 33. Qh8+ {[%clk 0:00:17]}  Kf7 {[%clk 0:00:23]} 34. Qh7+ {[%clk 0:00:17]} 1/2-1/2

[Event "December 19 Late 2023"]
[Site "https://www.chess.com"]
[Date "2023.12.19"]
[Round "2"]
[White "Polster, Christian"]
[Black "Urbina Perez, Juan Antonio"]
[Result "1-0"]
[Board "142"]
[TimeControl "180+1"]
[WhiteFideId "12965081"]
[BlackFideId "2217368"]
[WhiteElo "2141"]
[BlackElo "2185"]
[WhiteTeam "GER"]
[BlackTeam "ESP"]
[WhiteClock "0:00:06"]
[BlackClock "0:00:47"]

1. d4 {[%clk 0:02:45]}  d5 {[%clk 0:02:55]} 2. c4 {[%clk 0:02:40]}  c6 {[%clk 0:02:55]} 3. cxd5 {[%clk 0:02:36]}  cxd5 {[%clk 0:02:54]} 4. Nc3 {[%clk 0:02:34]}  Nc6 {[%clk 0:02:54]} 5. f3 {[%clk 0:02:35]}  Nf6 {[%clk 0:02:43]} 6. e4 {[%clk 0:02:35]}  Qb6 {[%clk 0:02:43]} 7. e5 {[%clk 0:02:25]}  Nd7 {[%clk 0:02:37]} 8. Nxd5 {[%clk 0:02:18]}  Qa5+ {[%clk 0:02:34]} 9. Nc3 {[%clk 0:02:17]}  e6 {[%clk 0:02:34]} 10. Be3 {[%clk 0:01:41]}  Bb4 {[%clk 0:02:31]} 11. Qd2 {[%clk 0:01:38]}  Nb6 {[%clk 0:02:25]} 12. Bf2 {[%clk 0:01:26]}  O-O {[%clk 0:02:19]} 13. Bd3 {[%clk 0:01:23]}  Rd8 {[%clk 0:02:17]} 14. Nge2 {[%clk 0:01:19]}  g6 {[%clk 0:02:12]} 15. O-O {[%clk 0:01:16]}  Nd5 {[%clk 0:02:09]} 16. a3 {[%clk 0:01:10]}  Bf8 {[%clk 0:02:07]} 17. Rfd1 {[%clk 0:01:07]}  b6 {[%clk 0:02:04]} 18. b4 {[%clk 0:01:01]}  Ncxb4 {[%clk 0:01:50]} 19. axb4 {[%clk 0:00:59]}  Qxb4 {[%clk 0:01:50]} 20. Nxd5 {[%clk 0:00:32]}  exd5 {[%clk 0:01:51]} 21. Qxb4 {[%clk 0:00:20]}  Bxb4 {[%clk 0:01:52]} 22. Ba6 {[%clk 0:00:20]}  Bf5 {[%clk 0:01:49]} 23. Be1 {[%clk 0:00:15]}  Be7 {[%clk 0:01:48]} 24. Kf2 {[%clk 0:00:14]}  h5 {[%clk 0:01:48]} 25. Rdc1 {[%clk 0:00:14]}  Rd7 {[%clk 0:01:46]} 26. Rc6 {[%clk 0:00:13]}  Bf8 {[%clk 0:01:42]} 27. Rac1 {[%clk 0:00:13]}  Re8 {[%clk 0:01:41]} 28. Bd2 {[%clk 0:00:11]}  Kg7 {[%clk 0:01:39]} 29. Rc7 {[%clk 0:00:10]}  Ree7 {[%clk 0:01:36]} 30. Rxd7 {[%clk 0:00:08]}  Rxd7 {[%clk 0:01:35]} 31. Bg5 {[%clk 0:00:09]}  Ba3 {[%clk 0:01:30]} 32. Rc6 {[%clk 0:00:07]}  Be6 {[%clk 0:01:28]} 33. Bf6+ {[%clk 0:00:07]}  Kh7 {[%clk 0:01:27]} 34. Rc8 {[%clk 0:00:07]}  g5 {[%clk 0:01:27]} 35. Rh8+ {[%clk 0:00:02]}  Kg6 {[%clk 0:01:27]} 36. Rg8+ {[%clk 0:00:03]}  Kh7 {[%clk 0:01:25]} 37. Rg7+ {[%clk 0:00:03]}  Kh6 {[%clk 0:01:24]} 38. Rxg5 {[%clk 0:00:02]}  Bb2 {[%clk 0:01:21]} 39. f4 {[%clk 0:00:02]}  Bg4 {[%clk 0:01:17]} 40. Ke3 {[%clk 0:00:01]}  Rc7 {[%clk 0:01:17]} 41. Kd2 {[%clk 0:00:01]}  Bxe2 {[%clk 0:01:13]} 42. Bxe2 {[%clk 0:00:02]}  Bxd4 {[%clk 0:01:12]} 43. Rg8 {[%clk 0:00:02]}  Bc3+ {[%clk 0:01:11]} 44. Kc2 {[%clk 0:00:01]}  Bxe5+ {[%clk 0:01:10]} 45. Kd1 {[%clk 0:00:01]}  Bxf6 {[%clk 0:01:10]} 46. Bd3 {[%clk 0:00:01]}  Rd7 {[%clk 0:01:03]} 47. g3 {[%clk 0:00:01]}  Rd8 {[%clk 0:01:03]} 48. Rxd8 {[%clk 0:00:01]}  Bxd8 {[%clk 0:01:04]} 49. Ba6 {[%clk 0:00:01]}  Bc7 {[%clk 0:01:03]} 50. Ke2 {[%clk 0:00:01]}  h4 {[%clk 0:01:03]} 51. Kf3 {[%clk 0:00:02]}  hxg3 {[%clk 0:01:04]} 52. hxg3 {[%clk 0:00:03]}  Kg6 {[%clk 0:01:02]} 53. g4 {[%clk 0:00:03]}  Bd6 {[%clk 0:01:01]} 54. g5 {[%clk 0:00:03]}  f6 {[%clk 0:01:01]} 55. Bd3+ {[%clk 0:00:04]}  Kf7 {[%clk 0:01:00]} 56. g6+ {[%clk 0:00:04]}  Kg7 {[%clk 0:01:00]} 57. f5 {[%clk 0:00:05]}  a5 {[%clk 0:00:59]} 58. Bb5 {[%clk 0:00:05]}  Bf8 {[%clk 0:00:58]} 59. Ke3 {[%clk 0:00:05]}  Bc5+ {[%clk 0:00:57]} 60. Kd3 {[%clk 0:00:05]}  Kh6 {[%clk 0:00:58]} 61. Bc6 {[%clk 0:00:05]}  Bf8 {[%clk 0:00:53]} 62. Bxd5 {[%clk 0:00:05]}  Kg5 {[%clk 0:00:54]} 63. Ke4 {[%clk 0:00:05]}  a4 {[%clk 0:00:54]} 64. Bc6 {[%clk 0:00:05]}  a3 {[%clk 0:00:54]} 65. Bd5 {[%clk 0:00:05]}  Bg7 {[%clk 0:00:54]} 66. Ba2 {[%clk 0:00:05]}  Kg4 {[%clk 0:00:54]} 67. Bb3 {[%clk 0:00:05]}  Kg3 {[%clk 0:00:55]} 68. Ke3 {[%clk 0:00:05]}  Bh6+ {[%clk 0:00:53]} 69. Ke4 {[%clk 0:00:05]}  Kf2 {[%clk 0:00:53]} 70. Kd5 {[%clk 0:00:05]}  Ke3 {[%clk 0:00:50]} 71. Ke6 {[%clk 0:00:05]}  Ke4 {[%clk 0:00:50]} 72. Kxf6 {[%clk 0:00:04]}  Kd4 {[%clk 0:00:47]} 73. Kf7 {[%clk 0:00:04]}  Kc3 {[%clk 0:00:46]} 74. Be6 {[%clk 0:00:05]}  b5 {[%clk 0:00:47]} 75. f6 {[%clk 0:00:05]}  b4 {[%clk 0:00:47]} 76. g7 {[%clk 0:00:05]}  Bxg7 {[%clk 0:00:47]} 77. fxg7 {[%clk 0:00:06]}  b3 {[%clk 0:00:48]} 78. g8=Q {[%clk 0:00:05]}  b2 {[%clk 0:00:49]} 79. Qg3+ {[%clk 0:00:05]}  Kc2 {[%clk 0:00:49]} 80. Qb3+ {[%clk 0:00:05]}  Kc1 {[%clk 0:00:49]} 81. Bf5 {[%clk 0:00:06]}  a2 {[%clk 0:00:47]} 82. Qc2# {[%clk 0:00:06]} 1-0

[Event "December 19 Late 2023"]
[Site "https://www.chess.com"]
[Date "2023.12.19"]
[Round "2"]
[White "GoldenShare"]
[Black "Hon, Eric"]
[Result "1-0"]
[Board "143"]
[TimeControl "180+1"]
[BlackFideId "2097117"]
[WhiteElo "2501"]
[BlackElo "1918"]
[BlackTeam "USA"]
[WhiteClock "0:02:10"]
[BlackClock "0:02:31"]

1. e4 {[%clk 0:03:00]}  c5 {[%clk 0:02:57]} 2. Nc3 {[%clk 0:03:00]}  e6 {[%clk 0:02:57]} 3. Nf3 {[%clk 0:03:00]}  Nc6 {[%clk 0:02:57]} 4. d4 {[%clk 0:03:01]}  cxd4 {[%clk 0:02:57]} 5. Nxd4 {[%clk 0:03:02]}  Nf6 {[%clk 0:02:57]} 6. Nxc6 {[%clk 0:03:02]}  dxc6 {[%clk 0:02:57]} 7. e5 {[%clk 0:03:03]}  Nd5 {[%clk 0:02:57]} 8. Ne4 {[%clk 0:03:01]}  Be7 {[%clk 0:02:54]} 9. c4 {[%clk 0:02:59]}  Nb6 {[%clk 0:02:53]} 10. Qxd8+ {[%clk 0:02:56]}  Bxd8 {[%clk 0:02:53]} 11. b3 {[%clk 0:02:53]}  Be7 {[%clk 0:02:53]} 12. Be3 {[%clk 0:02:52]}  Nd7 {[%clk 0:02:52]} 13. f4 {[%clk 0:02:52]}  b6 {[%clk 0:02:51]} 14. c5 {[%clk 0:02:51]}  bxc5 {[%clk 0:02:51]} 15. Bc4 {[%clk 0:02:49]}  O-O {[%clk 0:02:50]} 16. Ke2 {[%clk 0:02:49]}  a5 {[%clk 0:02:49]} 17. a4 {[%clk 0:02:48]}  Nb6 {[%clk 0:02:49]} 18. Bxc5 {[%clk 0:02:44]}  Bxc5 {[%clk 0:02:48]} 19. Nxc5 {[%clk 0:02:45]}  Nxc4 {[%clk 0:02:48]} 20. bxc4 {[%clk 0:02:46]}  Rd8 {[%clk 0:02:48]} 21. Rhd1 {[%clk 0:02:46]}  Rxd1 {[%clk 0:02:46]} 22. Rxd1 {[%clk 0:02:47]}  Kf8 {[%clk 0:02:47]} 23. Rd6 {[%clk 0:02:42]}  Ba6 {[%clk 0:02:45]} 24. Kd3 {[%clk 0:02:42]}  Ke8 {[%clk 0:02:43]} 25. Rxc6 {[%clk 0:02:41]}  Rd8+ {[%clk 0:02:41]} 26. Rd6 {[%clk 0:02:40]}  Rxd6+ {[%clk 0:02:41]} 27. exd6 {[%clk 0:02:41]}  Bc8 {[%clk 0:02:40]} 28. Nb3 {[%clk 0:02:39]}  Kd7 {[%clk 0:02:38]} 29. c5 {[%clk 0:02:37]}  Bb7 {[%clk 0:02:38]} 30. g3 {[%clk 0:02:33]}  Bc6 {[%clk 0:02:37]} 31. Nxa5 {[%clk 0:02:33]}  Bxa4 {[%clk 0:02:37]} 32. Kd4 {[%clk 0:02:32]}  Bb5 {[%clk 0:02:36]} 33. Nc4 {[%clk 0:02:30]}  Bxc4 {[%clk 0:02:36]} 34. Kxc4 {[%clk 0:02:30]}  Kc6 {[%clk 0:02:36]} 35. Kd4 {[%clk 0:02:30]}  f6 {[%clk 0:02:37]} 36. g4 {[%clk 0:02:30]}  g6 {[%clk 0:02:36]} 37. h4 {[%clk 0:02:30]}  h5 {[%clk 0:02:37]} 38. g5 {[%clk 0:02:08]}  fxg5 {[%clk 0:02:36]} 39. fxg5 {[%clk 0:02:07]}  Kd7 {[%clk 0:02:34]} 40. Ke5 {[%clk 0:02:08]}  Kc6 {[%clk 0:02:33]} 41. Kxe6 {[%clk 0:02:09]}  Kxc5 {[%clk 0:02:31]} 42. d7 {[%clk 0:02:10]} 1-0

[Event "December 19 Late 2023"]
[Site "https://www.chess.com"]
[Date "2023.12.19"]
[Round "2"]
[White "Grapsa, Georgia"]
[Black "Rama, Tejas"]
[Result "0-1"]
[Board "147"]
[TimeControl "180+1"]
[WhiteFideId "4206436"]
[BlackFideId "30907381"]
[WhiteElo "1794"]
[BlackElo "2089"]
[WhiteTeam "GRE"]
[BlackTeam "USA"]
[WhiteClock "0:00:00"]
[BlackClock "0:00:05"]

1. e4 {[%clk 0:02:56]}  e5 {[%clk 0:02:59]} 2. Nf3 {[%clk 0:02:55]}  Nc6 {[%clk 0:03:00]} 3. Bb5 {[%clk 0:02:56]}  a6 {[%clk 0:03:00]} 4. Ba4 {[%clk 0:02:56]}  Nf6 {[%clk 0:03:00]} 5. Bxc6 {[%clk 0:02:57]}  dxc6 {[%clk 0:03:00]} 6. d3 {[%clk 0:02:58]}  Bd6 {[%clk 0:02:55]} 7. Nbd2 {[%clk 0:02:59]}  Be6 {[%clk 0:02:54]} 8. b3 {[%clk 0:02:57]}  Qe7 {[%clk 0:02:53]} 9. Bb2 {[%clk 0:02:57]}  Nd7 {[%clk 0:02:49]} 10. Nc4 {[%clk 0:02:56]}  Bxc4 {[%clk 0:02:49]} 11. bxc4 {[%clk 0:02:56]}  f6 {[%clk 0:02:47]} 12. O-O {[%clk 0:02:54]}  Nc5 {[%clk 0:02:42]} 13. Nh4 {[%clk 0:02:50]}  Ne6 {[%clk 0:02:29]} 14. Nf5 {[%clk 0:02:49]}  Qd7 {[%clk 0:02:29]} 15. Qg4 {[%clk 0:02:40]}  Bc5 {[%clk 0:02:23]} 16. Kh1 {[%clk 0:02:37]}  h5 {[%clk 0:02:16]} 17. Qg6+ {[%clk 0:02:11]}  Qf7 {[%clk 0:02:16]} 18. Qxf7+ {[%clk 0:02:08]}  Kxf7 {[%clk 0:02:16]} 19. g3 {[%clk 0:02:03]}  h4 {[%clk 0:01:28]} 20. Nxh4 {[%clk 0:01:58]}  Rh5 {[%clk 0:01:25]} 21. Nf3 {[%clk 0:01:51]}  Rah8 {[%clk 0:01:20]} 22. Kg2 {[%clk 0:01:51]}  Rh3 {[%clk 0:01:08]} 23. Rh1 {[%clk 0:01:46]}  g5 {[%clk 0:01:03]} 24. Ng1 {[%clk 0:01:46]}  R3h7 {[%clk 0:01:01]} 25. h3 {[%clk 0:01:46]}  Rg7 {[%clk 0:00:52]} 26. Ne2 {[%clk 0:01:43]}  Rgh7 {[%clk 0:00:50]} 27. Raf1 {[%clk 0:01:42]}  Ke7 {[%clk 0:00:49]} 28. f4 {[%clk 0:01:41]}  gxf4 {[%clk 0:00:50]} 29. gxf4 {[%clk 0:01:42]}  Rg8+ {[%clk 0:00:50]} 30. Kh2 {[%clk 0:01:34]}  exf4 {[%clk 0:00:45]} 31. d4 {[%clk 0:01:02]}  Bd6 {[%clk 0:00:18]} 32. e5 {[%clk 0:00:59]}  fxe5 {[%clk 0:00:19]} 33. dxe5 {[%clk 0:01:00]}  Bc5 {[%clk 0:00:16]} 34. Nxf4 {[%clk 0:01:00]}  Ng5 {[%clk 0:00:16]} 35. Bc1 {[%clk 0:00:41]}  Bd4 {[%clk 0:00:17]} 36. Rhg1 {[%clk 0:00:16]}  Bxe5 {[%clk 0:00:12]} 37. Rg4 {[%clk 0:00:13]}  Rxh3+ {[%clk 0:00:11]} 38. Kg2 {[%clk 0:00:13]}  Rhh8 {[%clk 0:00:09]} 39. Re1 {[%clk 0:00:10]}  Nf7 {[%clk 0:00:06]} 40. Nd3 {[%clk 0:00:08]}  Rxg4+ {[%clk 0:00:06]} 41. Kf3 {[%clk 0:00:09]}  Rg3+ {[%clk 0:00:05]} 42. Kf2 {[%clk 0:00:09]}  Rh2+ {[%clk 0:00:05]} 43. Kf1 {[%clk 0:00:09]}  Rf3+ {[%clk 0:00:05]} 44. Kg1 {[%clk 0:00:09]}  Rh5 {[%clk 0:00:06]} 45. Bb2 {[%clk 0:00:09]}  Ke6 {[%clk 0:00:03]} 46. Kg2 {[%clk 0:00:08]}  Rg3+ {[%clk 0:00:04]} 47. Kf2 {[%clk 0:00:08]}  Rg4 {[%clk 0:00:04]} 48. Kf3 {[%clk 0:00:08]}  Rxc4 {[%clk 0:00:04]} 49. Nxe5 {[%clk 0:00:07]}  Nxe5+ {[%clk 0:00:04]} 50. Bxe5 {[%clk 0:00:06]}  Rxe5 {[%clk 0:00:05]} 51. Rh1 {[%clk 0:00:00]}  Rc3+ {[%clk 0:00:05]} 0-1